fUST/lending_fUST_20250927
["ID","MTS","AMOUNT","RATE_DAILY","PERIOD"]
[388030992,1758971443169,-481.94923442,0.00035616,9]
[388030993,1758971443178,-1660.17,0.00035616,9]
[388030994,1758971443187,-480.0,0.00035616,9]
[388030995,1758971443196,-480.0,0.00035616,9]
[388030996,1758971443206,-210.88326245,0.00035616,9]
[388030997,1758971443214,-480.0,0.00035616,9]
[388030998,1758971443223,-480.0,0.00035616,9]
[388030999,1758971443232,-480.0,0.00035616,9]
[388031000,1758971443240,-480.0,0.00035616,9]
[388031001,1758971443249,-480.0,0.00035616,9]
[388031002,1758971443257,-480.0,0.00035616,9]
[388031003,1758971443267,-504.95591802,0.00035616,9]
[388031004,1758971443275,-9230.96,0.00035616,9]
[388031005,1758971443284,-480.0,0.00035616,9]
[388031006,1758971443294,-3843.99,0.00035616,9]
[388031007,1758971443302,-480.0,0.00035616,9]
[388031008,1758971443311,-480.0,0.00035616,9]
[388031009,1758971443320,-1265.71,0.00035616,9]
[388031010,1758971443329,-480.0,0.00035616,9]
[388031011,1758971443338,-480.0,0.00035616,9]
[388031012,1758971443347,-946.49,0.00035616,9]
[388031013,1758971443356,-480.0,0.00035616,9]
[388031014,1758971443364,-151.0,0.00035616,7]
[388031015,1758971443373,-480.0,0.00035616,9]
[388031016,1758971443382,-480.0,0.00035616,9]
[388031017,1758971443391,-2572.86,0.00035616,9]
[388031018,1758971443400,-480.0,0.00035616,9]
[388031019,1758971443410,-5543.33,0.00035616,3]
[388031020,1758971443419,-480.0,0.00035616,9]
[388031021,1758971443428,-1310.61,0.00035616,9]
[388031022,1758971443437,-480.0,0.00035616,9]
[388031023,1758971443446,-859.81,0.00035616,9]
[388031024,1758971443455,-9596.68,0.00035616,9]
[388031025,1758971443464,-480.0,0.00035616,9]
[388031026,1758971443473,-1095.4,0.00035616,9]
[388031027,1758971443482,-568.21,0.00035616,9]
[388031028,1758971443491,-480.0,0.00035616,9]
[388031029,1758971443500,-480.0,0.00035616,9]
[388031030,1758971443509,-480.0,0.00035616,9]
[388031031,1758971443519,-505.86,0.00035616,9]
[388031032,1758971443528,-696.61,0.00035616,9]
[388031033,1758971443537,-480.0,0.00035616,9]
[388031034,1758971443547,-480.0,0.00035616,9]
[388031035,1758971443559,-480.0,0.00035616,9]
[388031036,1758971443569,-493.86,0.00035616,9]
[388031037,1758971443579,-480.0,0.00035616,9]
[388031038,1758971443588,-16822.37,0.00035616,9]
[388031039,1758971443598,-480.0,0.00035616,9]
[388031040,1758971443607,-480.0,0.00035616,9]
[388031041,1758971443616,-3498.96,0.00035616,9]
[388031042,1758971443626,-726.58,0.00035616,9]
[388031043,1758971443635,-480.0,0.00035616,9]
[388031044,1758971443645,-846.41,0.00035616,9]
[388031045,1758971443654,-480.0,0.00035616,9]
[388031046,1758971443663,-480.0,0.00035616,9]
[388031047,1758971443672,-485.57779046,0.00035616,9]
[388031048,1758971443681,-731.58,0.00035616,9]
[388031049,1758971443690,-651.3,0.00035616,9]
[388031050,1758971443699,-1268.81,0.00035616,9]
[388031052,1758971443708,-756.95,0.00035616,9]
[388031053,1758971443718,-480.0,0.00035616,9]
[388031054,1758971443727,-480.0,0.00035616,9]
[388031055,1758971443736,-962.05,0.00035616,9]
[388031056,1758971443745,-480.0,0.00035616,9]
[388031057,1758971443754,-480.0,0.00035616,9]
[388031058,1758971443763,-480.0,0.00035616,9]
[388031059,1758971443772,-1000.0,0.00035616,9]
[388031060,1758971443781,-151.0,0.00035616,7]
[388031061,1758971443791,-480.0,0.00035616,9]
[388031062,1758971443800,-480.0,0.00035616,9]
[388031063,1758971443810,-584.25471431,0.00035616,9]
[388031064,1758971443820,-151.0,0.00035616,7]
[388031065,1758971443829,-480.0,0.00035616,9]
[388031066,1758971443838,-480.0,0.00035616,9]
[388031067,1758971443848,-480.0,0.00035616,9]
[388031068,1758971443858,-480.0,0.00035616,9]
[388031069,1758971443868,-4776.4,0.00035616,9]
[388031070,1758971443877,-480.0,0.00035616,9]
[388031071,1758971443885,-538.726847,0.00035616,9]
[388031072,1758971443895,-4391.06,0.00035616,9]
[388031073,1758971443904,-4895.19,0.00035616,9]
[388031074,1758971443912,-480.0,0.00035616,9]
[388031075,1758971443921,-2956.81,0.00035616,9]
[388031076,1758971443930,-850.78,0.00035616,9]
[388031077,1758971443939,-480.0,0.00035616,9]
[388031078,1758971443947,-877.71,0.00035616,9]
[388031079,1758971443956,-480.0,0.00035616,9]
[388031080,1758971443965,-500.0,0.00035616,9]
[388031081,1758971443974,-432.96996983,0.00035616,9]
[388031082,1758971443983,-1957.77,0.00035616,9]
[388031083,1758971443992,-151.0,0.00035616,7]
[388031084,1758971444001,-480.0,0.00035616,9]
[388031085,1758971444010,-480.0,0.00035616,9]
[388031086,1758971444019,-151.0,0.00035616,7]
[388031087,1758971444028,-480.0,0.00035616,9]
[388031088,1758971444037,-151.0,0.00035616,7]
[388031089,1758971444046,-480.0,0.00035616,9]
[388031090,1758971444054,-1689.23,0.00035616,9]
[388031091,1758971444064,-937.39,0.00035616,9]
[388031092,1758971444073,-480.0,0.00035616,9]
[388031093,1758971444082,-781.89,0.00035616,9]
[388031094,1758971444090,-480.0,0.00035616,9]
[388031095,1758971444099,-480.0,0.00035616,9]
[388031096,1758971444108,-480.0,0.00035616,9]
[388031097,1758971444118,-480.0,0.00035616,9]
[388031098,1758971444127,-480.0,0.00035616,9]
[388031099,1758971444136,-480.0,0.00035616,9]
[388031100,1758971444146,-480.0,0.00035616,9]
[388031101,1758971444155,-151.0,0.00035616,7]
[388031102,1758971444164,-480.0,0.00035616,9]
[388031103,1758971444174,-604.85,0.00035616,9]
[388031104,1758971444183,-151.0,0.00035616,7]
[388031105,1758971444192,-480.0,0.00035616,9]
[388031106,1758971444200,-480.0,0.00035616,9]
[388031107,1758971444209,-2527.97,0.00035616,9]
[388031108,1758971444218,-480.0,0.00035616,9]
[388031109,1758971444227,-480.0,0.00035616,9]
[388031110,1758971444236,-480.0,0.00035616,9]
[388031111,1758971444246,-480.0,0.00035616,9]
[388031112,1758971444255,-659.04,0.00035616,9]
[388031113,1758971444266,-480.0,0.00035616,9]
[388031114,1758971444275,-480.0,0.00035616,9]
[388031115,1758971444284,-480.0,0.00035616,9]
[388031116,1758971444293,-151.0,0.00035616,7]
[388031117,1758971444303,-480.0,0.00035616,9]
[388031118,1758971444313,-4525.15,0.00035616,9]
[388031119,1758971444323,-480.0,0.00035616,9]
[388031120,1758971444332,-8792.94,0.00035616,9]
[388031121,1758971444341,-480.0,0.00035616,9]
[388031122,1758971444350,-241.87782608,0.00035616,2]
[388031123,1758971444359,-480.0,0.00035616,9]
[388031124,1758971444369,-1278.58,0.00035616,9]
[388031125,1758971444378,-480.0,0.00035616,9]
[388031126,1758971444387,-480.0,0.00035616,9]
[388031127,1758971444396,-480.0,0.00035616,9]
[388031128,1758971444405,-480.0,0.00035616,9]
[388031129,1758971444414,-1376.53,0.00035616,9]
[388031130,1758971444423,-546.11,0.00035616,9]
[388031131,1758971444432,-480.0,0.00035616,9]
[388031132,1758971444441,-2434.89,0.00035616,9]
[388031133,1758971444450,-420.1532824,0.00035616,9]
[388031134,1758971444459,-480.0,0.00035616,9]
[388031135,1758971444468,-480.0,0.00035616,9]
[388031136,1758971444477,-480.0,0.00035616,9]
[388031137,1758971444486,-480.0,0.00035616,9]
[388031138,1758971444495,-2404.63,0.00035616,9]
[388031139,1758971444504,-499.42,0.00035616,9]
[388031140,1758971444513,-480.0,0.00035616,9]
[388031141,1758971444521,-983.2,0.00035616,9]
[388031142,1758971444530,-480.0,0.00035616,9]
[388031143,1758971444539,-480.0,0.00035616,9]
[388031144,1758971444550,-480.0,0.00035616,9]
[388031145,1758971444561,-4651.99,0.00035616,9]
[388031146,1758971444570,-480.0,0.00035616,9]
[388031147,1758971444579,-6939.32,0.00035616,9]
[388031148,1758971444588,-480.0,0.00035616,9]
[388031149,1758971444599,-480.0,0.00035616,9]
[388031150,1758971444607,-2464.58,0.00035616,9]
[388031151,1758971444618,-1277.11,0.00035616,9]
[388031152,1758971444628,-488.73367275,0.00035616,9]
[388031153,1758971444637,-480.0,0.00035616,9]
[388031154,1758971444646,-480.0,0.00035616,9]
[388031155,1758971444655,-480.0,0.00035616,9]
[388031156,1758971444664,-480.0,0.00035616,9]
[388031157,1758971444673,-480.0,0.00035616,9]
[388031158,1758971444681,-480.0,0.00035616,9]
[388031159,1758971444690,-481.78275944,0.00035616,9]
[388031160,1758971444699,-1648.77,0.00035616,9]
[388031161,1758971444708,-480.0,0.00035616,9]
[388031162,1758971444717,-480.0,0.00035616,9]
[388031163,1758971444725,-480.0,0.00035616,9]
[388031164,1758971444734,-956.57,0.00035616,9]
[388031165,1758971444743,-1032.84,0.00035616,9]
[388031166,1758971444752,-500.0,0.00035616,9]
[388031167,1758971444761,-500.0,0.00035616,9]
[388031168,1758971444770,-539.66,0.00035616,9]
[388031169,1758971444779,-1674.37,0.00035616,9]
[388031170,1758971444789,-650.65,0.00035616,9]
[388031171,1758971444798,-794.43,0.00035616,9]
[388031172,1758971444807,-480.0,0.00035616,9]
[388031173,1758971444816,-480.0,0.00035616,9]
[388031174,1758971444825,-1215.69,0.00035616,9]
[388031175,1758971444834,-480.0,0.00035616,9]
[388031176,1758971444842,-1199.1,0.00035616,9]
[388031177,1758971444851,-480.0,0.00035616,9]
[388031178,1758971444859,-3035.83,0.00035616,9]
[388031179,1758971444868,-480.0,0.00035616,9]
[388031180,1758971444876,-480.0,0.00035616,9]
[388031181,1758971445086,-480.0,0.00035616,9]
[388031182,1758971445095,-467.64378666,0.00035616,9]
[388031183,1758971445103,-1855.98,0.00035616,9]
[388031184,1758971445113,-480.0,0.00035616,9]
[388031185,1758971445123,-480.0,0.00035616,9]
[388031186,1758971445132,-480.0,0.00035616,9]
[388031187,1758971445142,-480.0,0.00035616,9]
[388031188,1758971445152,-770.89,0.00035616,9]
[388031189,1758971445161,-480.0,0.00035616,9]
[388031190,1758971445171,-480.0,0.00035616,9]
[388031191,1758971445181,-4268.89,0.00035616,9]
[388031192,1758971445190,-2269.6,0.00035616,9]
[388031193,1758971445199,-480.0,0.00035616,9]
[388031194,1758971445209,-3027.47,0.00035616,9]
[388031195,1758971445218,-1619.65,0.00035616,9]
[388031196,1758971445227,-4257.74,0.00035616,9]
[388031197,1758971445237,-482.94037169,0.00035616,9]
[388031198,1758971445246,-480.0,0.00035616,9]
[388031199,1758971445255,-872.51,0.00035616,9]
[388031200,1758971445265,-174.111744,0.00035616,7]
[388031201,1758971445275,-933.69,0.00035616,9]
[388031202,1758971445284,-982.41,0.00035616,9]
[388031203,1758971445293,-480.0,0.00035616,9]
[388031204,1758971445302,-480.0,0.00035616,9]
[388031205,1758971445311,-480.0,0.00035616,9]
[388031206,1758971445322,-151.0,0.00035616,7]
[388031207,1758971445331,-151.0,0.00035616,7]
[388031208,1758971445340,-480.0,0.00035616,9]
[388031209,1758971445350,-625.51,0.00035616,9]
[388031210,1758971445360,-539.56,0.00035616,9]
[388031211,1758971445369,-932.3,0.00035616,9]
[388031212,1758971445378,-480.0,0.00035616,9]
[388031213,1758971445387,-151.0,0.00035616,7]
[388031214,1758971445397,-1019.32,0.00035616,9]
[388031215,1758971445406,-480.0,0.00035616,9]
[388031216,1758971445415,-1762.53,0.00035616,9]
[388031217,1758971445424,-480.0,0.00035616,9]
[388031218,1758971445434,-151.0,0.00035616,7]
[388031219,1758971445443,-480.0,0.00035616,9]
[388031220,1758971445452,-480.0,0.00035616,9]
[388031221,1758971445461,-500.0,0.00035616,7]
[388031222,1758971445470,-151.0,0.00035616,7]
[388031223,1758971445480,-8469.76,0.00035616,9]
[388031224,1758971445489,-2771.11,0.00035616,9]
[388031225,1758971445498,-500.0,0.00035616,7]
[388031226,1758971445507,-151.0,0.00035616,7]
[388031227,1758971445517,-487.3,0.00035616,9]
[388031228,1758971445526,-151.0,0.00035616,7]
[388031229,1758971445536,-500.0,0.00035616,7]
[388031230,1758971445545,-151.0,0.00035616,7]
[388031232,1758971445559,-2209.56,0.00035616,9]
[388031233,1758971445569,-5674.32,0.00035616,9]
[388031234,1758971445579,-1185.5,0.00035616,9]
[388031235,1758971445589,-500.0,0.00035616,7]
[388031236,1758971445599,-920.59,0.00035616,9]
[388031237,1758971445609,-480.0,0.00035616,9]
[388031238,1758971445620,-151.0,0.00035616,7]
[388031239,1758971445630,-480.0,0.00035616,9]
[388031240,1758971445639,-559.87398093,0.00035616,9]
[388031242,1758971445648,-2825.3,0.00035616,9]
[388031244,1758971445658,-480.0,0.00035616,9]
[388031246,1758971445667,-480.0,0.00035616,9]
[388031247,1758971445676,-480.0,0.00035616,9]
[388031248,1758971445686,-480.0,0.00035616,9]
[388031249,1758971445695,-839.39,0.00035616,9]
[388031250,1758971445704,-480.0,0.00035616,9]
[388031251,1758971445715,-4647.38,0.00035616,9]
[388031252,1758971445724,-480.0,0.00035616,9]
[388031253,1758971445733,-480.0,0.00035616,9]
[388031254,1758971445743,-480.0,0.00035616,9]
[388031256,1758971445752,-480.0,0.00035616,9]
[388031258,1758971445761,-151.0,0.00035616,7]
[388031259,1758971445770,-480.0,0.00035616,9]
[388031260,1758971445779,-151.0,0.00035616,7]
[388031261,1758971445788,-480.0,0.00035616,9]
[388031262,1758971445797,-1864.78,0.00035616,9]
[388031263,1758971445806,-480.0,0.00035616,9]
[388031264,1758971445815,-480.0,0.00035616,9]
[388031265,1758971445824,-480.0,0.00035616,9]
[388031266,1758971445834,-480.0,0.00035616,9]
[388031267,1758971445843,-2531.15,0.00035616,9]
[388031268,1758971445852,-480.0,0.00035616,9]
[388031269,1758971445862,-650.63,0.00035616,9]
[388031270,1758971445871,-480.0,0.00035616,9]
[388031271,1758971445878,-480.0,0.00035616,9]
[388031272,1758971445886,-410.32290904,0.00035616,9]
[388031273,1758971445894,-480.0,0.00035616,9]
[388031274,1758971445901,-480.0,0.00035616,9]
[388031275,1758971445908,-1097.48,0.00035616,9]
[388031276,1758971445915,-480.0,0.00035616,9]
[388031277,1758971445922,-480.0,0.00035616,9]
[388031278,1758971445929,-480.0,0.00035616,9]
[388031279,1758971445936,-480.0,0.00035616,9]
[388031280,1758971445944,-480.0,0.00035616,9]
[388031281,1758971445951,-480.0,0.00035616,9]
[388031282,1758971445959,-480.0,0.00035616,9]
[388031283,1758971445966,-480.0,0.00035616,9]
[388031284,1758971445974,-480.0,0.00035616,7]
[388031285,1758971445982,-578.37,0.00035616,9]
[388031286,1758971445989,-2561.54,0.00035616,9]
[388031287,1758971445996,-558.00000015,0.00035616,9]
[388031288,1758971446005,-480.0,0.00035616,9]
[388031289,1758971446013,-3104.74,0.00035616,9]
[388031290,1758971446020,-2618.03,0.00035616,9]
[388031291,1758971446029,-485.13496706,0.00035616,9]
[388031292,1758971446036,-480.0,0.00035616,9]
[388031293,1758971446043,-1199.14,0.00035616,9]
[388031294,1758971446050,-1663.81,0.00035616,9]
[388031295,1758971446058,-480.0,0.00035616,9]
[388031296,1758971446066,-929.99,0.00035616,9]
[388031297,1758971446074,-480.0,0.00035616,9]
[388031298,1758971446081,-480.0,0.00035616,9]
[388031299,1758971446088,-1552.59,0.00035616,9]
[388031300,1758971446099,-480.0,0.00035616,9]
[388031301,1758971446106,-3088.87,0.00035616,9]
[388031302,1758971446114,-480.0,0.00035616,9]
[388031303,1758971446123,-168.0,0.00035625,2]
[388031304,1758971446132,-800.0,0.0003567,7]
[388031305,1758971446141,-500.0,0.00035673,2]
[388031306,1758971446150,-500.71978264,0.00035673,5]
[388031307,1758971446159,-500.0,0.00035673,5]
[388031308,1758971446168,-500.0,0.00035673,5]
[388031309,1758971446177,-500.0,0.00035673,5]
[388031310,1758971446186,-500.0,0.00035673,5]
[388031311,1758971446196,-504.04198193,0.00035673,5]
[388031312,1758971446205,-500.0,0.00035673,5]
[388031313,1758971446213,-500.0,0.00035673,5]
[388031314,1758971446224,-500.0,0.00035673,5]
[388031315,1758971446233,-500.0,0.00035673,5]
[388031316,1758971446241,-500.0,0.00035673,5]
[388031317,1758971446251,-500.0,0.00035673,5]
[388031318,1758971446260,-500.0,0.00035673,5]
[388031319,1758971446269,-500.0,0.00035673,5]
[388031320,1758971446278,-500.0,0.00035673,5]
[388031321,1758971446287,-500.0,0.00035673,5]
[388031322,1758971446296,-500.0,0.00035673,5]
[388031323,1758971446305,-511.47453047,0.00035673,5]
[388031324,1758971446314,-500.0,0.00035673,5]
[388031325,1758971446323,-500.0,0.00035673,5]
[388031326,1758971446333,-500.0,0.00035673,5]
[388031327,1758971446342,-168.0,0.0003573,2]
[388031328,1758971446351,-168.0,0.00035767,2]
[388031329,1758971446360,-168.0,0.00035783,2]
[388031330,1758971446368,-6309.31977126,0.0003579,2]
[388031331,1758971446377,-800.0,0.0003582,7]
[388031332,1758971446386,-168.0,0.00035822,2]
[388031333,1758971446395,-500.0,0.00035873,5]
[388031334,1758971446404,-800.0,0.00035882,7]
[388031335,1758971446413,-233.76631357,0.00035889,30]
[388031336,1758971446424,-151.0,0.00035889,30]
[388031337,1758971446432,-151.0,0.00035889,30]
[388031338,1758971446441,-241.429196,0.00035889,30]
[388031339,1758971446450,-151.0,0.00035889,30]
[388031340,1758971446459,-192.066194,0.00035889,30]
[388031341,1758971446469,-151.0,0.00035889,30]
[388031342,1758971446478,-151.0,0.00035889,30]
[388031343,1758971446487,-151.0,0.00035889,30]
[388031344,1758971446497,-166.039249,0.00035889,30]
[388031345,1758971446506,-151.0,0.00035889,30]
[388031346,1758971446515,-151.0,0.00035889,30]
[388031347,1758971446525,-151.0,0.00035889,30]
[388031348,1758971446534,-151.0,0.00035889,30]
[388031349,1758971446544,-151.0,0.00035889,30]
[388031350,1758971446563,-151.0,0.00035889,30]
[388031351,1758971446584,-151.0,0.00035889,30]
[388031352,1758971446598,-151.0,0.00035889,30]
[388031353,1758971446606,-151.0,0.00035889,30]
[388031354,1758971446615,-151.0,0.00035889,30]
[388031355,1758971446625,-151.0,0.00035889,30]
[388031356,1758971446634,-151.0,0.00035889,30]
[388031357,1758971446644,-151.0,0.00035889,30]
[388031358,1758971446653,-151.0,0.00035889,30]
[388031359,1758971446663,-151.0,0.00035889,30]
[388031360,1758971446673,-151.0,0.00035889,30]
[388031361,1758971446682,-500.0,0.00035889,30]
[388031362,1758971446692,-250.0,0.00035889,30]
[388031363,1758971446702,-200.0,0.00035889,30]
[388031364,1758971446711,-500.0,0.00035889,30]
[388031365,1758971446721,-250.0,0.00035889,30]
[388031366,1758971446731,-200.0,0.00035889,30]
[388031367,1758971446740,-500.0,0.00035889,30]
[388031368,1758971446749,-250.0,0.00035889,30]
[388031369,1758971446758,-200.0,0.00035889,30]
[388031370,1758971446767,-500.0,0.00035889,30]
[388031371,1758971446776,-200.0,0.00035889,30]
[388031372,1758971446786,-250.0,0.00035889,30]
[388031373,1758971446795,-500.0,0.00035889,30]
[388031374,1758971446804,-500.0,0.00035889,30]
[388031375,1758971446812,-200.0,0.00035889,30]
[388031376,1758971446822,-151.0,0.00035889,30]
[388031377,1758971446831,-350.0,0.00035889,30]
[388031378,1758971446840,-250.0,0.00035889,30]
[388031379,1758971446849,-151.0,0.00035889,30]
[388031380,1758971446858,-500.0,0.00035889,30]
[388031381,1758971446866,-500.0,0.00035889,30]
[388031382,1758971446875,-200.0,0.00035889,30]
[388031383,1758971446882,-350.0,0.00035889,30]
[388031384,1758971446889,-277.15506413,0.00035889,30]
[388031386,1758971446897,-151.0,0.00035889,30]
[388031387,1758971446904,-500.0,0.00035889,30]
[388031388,1758971446910,-500.0,0.00035889,30]
[388031389,1758971446918,-200.0,0.00035889,30]
[388031390,1758971446926,-350.0,0.00035889,30]
[388031391,1758971446934,-507.74815246,0.00035889,30]
[388031392,1758971446941,-500.0,0.00035889,30]
[388031393,1758971446948,-151.0,0.00035889,30]
[388031394,1758971446954,-350.0,0.00035889,30]
[388031395,1758971446961,-500.0,0.00035889,30]
[388031396,1758971446968,-151.0,0.00035889,30]
[388031397,1758971446975,-350.0,0.00035889,30]
[388031398,1758971446985,-500.0,0.00035889,30]
[388031399,1758971446994,-151.0,0.00035889,30]
[388031400,1758971447004,-350.0,0.00035889,30]
[388031401,1758971447014,-500.0,0.00035889,30]
[388031402,1758971447024,-151.0,0.00035889,30]
[388031403,1758971447033,-350.0,0.00035889,30]
[388031404,1758971447042,-500.0,0.00035889,30]
[388031405,1758971447051,-151.0,0.00035889,30]
[388031406,1758971447061,-498.58851262,0.00035889,30]
[388031407,1758971447070,-17300.0,0.00035889,30]
[388031408,1758971447079,-363.37927857,0.00035889,30]
[388031409,1758971447089,-3180.82850532,0.00035889,30]
[388031410,1758971447098,-151.0,0.00035889,30]
[388031411,1758971447108,-480.0,0.0003589,9]
[388031412,1758971447118,-480.0,0.0003589,9]
[388031413,1758971447128,-480.0,0.0003589,9]
[388031414,1758971447137,-480.0,0.0003589,9]
[388031415,1758971447148,-480.0,0.0003589,9]
[388031416,1758971447157,-480.0,0.0003589,9]
[388031417,1758971447167,-579.89,0.0003589,9]
[388031418,1758971447177,-480.0,0.0003589,9]
[388031419,1758971447187,-480.0,0.0003589,9]
[388031420,1758971447197,-480.0,0.0003589,9]
[388031421,1758971447206,-595.54,0.0003589,9]
[388031422,1758971447216,-480.0,0.0003589,9]
[388031423,1758971447225,-741.65,0.0003589,9]
[388031424,1758971447235,-480.0,0.0003589,9]
[388031425,1758971447245,-480.0,0.0003589,9]
[388031426,1758971447254,-480.0,0.0003589,9]
[388031427,1758971447264,-607.68,0.0003589,9]
[388031428,1758971447274,-480.0,0.0003589,9]
[388031429,1758971447283,-480.0,0.0003589,9]
[388031430,1758971447343,-480.0,0.0003589,9]
[388031431,1758971447352,-480.0,0.0003589,9]
[388031432,1758971447362,-462.94567208,0.0003589,9]
[388031433,1758971447371,-498.45392136,0.0003589,9]
[388031434,1758971447381,-480.0,0.0003589,9]
[388031435,1758971447390,-480.0,0.0003589,9]
[388031436,1758971447399,-480.0,0.0003589,9]
[388031437,1758971447407,-480.0,0.0003589,9]
[388031438,1758971447417,-480.0,0.0003589,9]
[388031439,1758971447426,-480.0,0.0003589,9]
[388031440,1758971447435,-480.0,0.0003589,9]
[388031441,1758971447444,-480.0,0.0003589,9]
[388031442,1758971447454,-480.0,0.0003589,9]
[388031443,1758971447463,-480.0,0.0003589,9]
[388031444,1758971447472,-480.0,0.0003589,9]
[388031445,1758971447481,-480.0,0.0003589,9]
[388031446,1758971447490,-480.0,0.0003589,9]
[388031447,1758971447499,-480.0,0.0003589,9]
[388031448,1758971447508,-763.86,0.0003589,9]
[388031449,1758971447518,-480.0,0.0003589,7]
[388031450,1758971447527,-480.0,0.0003589,9]
[388031451,1758971447536,-480.0,0.0003589,9]
[388031452,1758971447545,-480.0,0.0003589,9]
[388031453,1758971447559,-480.0,0.0003589,9]
[388031454,1758971447568,-172.12101914,0.0003589,9]
[388031455,1758971447578,-608.14,0.0003589,9]
[388031456,1758971447587,-480.0,0.0003589,9]
[388031457,1758971447597,-480.0,0.0003589,9]
[388031458,1758971447606,-480.0,0.0003589,9]
[388031459,1758971447615,-480.0,0.0003589,9]
[388031460,1758971447627,-480.0,0.0003589,9]
[388031461,1758971447635,-151.0,0.0003589,30]
[388031462,1758971447645,-480.0,0.0003589,9]
[388031463,1758971447653,-480.0,0.0003589,9]
[388031464,1758971447662,-628.08,0.0003589,9]
[388031465,1758971447670,-480.0,0.0003589,9]
[388031466,1758971447679,-480.0,0.0003589,9]
[388031467,1758971447688,-480.0,0.0003589,9]
[388031468,1758971447697,-151.0,0.0003589,30]
[388031469,1758971447705,-805.32,0.0003589,9]
[388031470,1758971447714,-480.0,0.0003589,9]
[388031471,1758971447724,-480.0,0.0003589,9]
[388031472,1758971447733,-480.0,0.0003589,9]
[388031473,1758971447742,-644.89,0.0003589,9]
[388031474,1758971447750,-480.0,0.0003589,9]
[388031475,1758971447759,-179.95963025,0.0003589,3]
[388031476,1758971447768,-480.0,0.0003589,9]
[388031477,1758971447777,-480.0,0.0003589,9]
[388031478,1758971447785,-563.85097826,0.0003589,9]
[388031479,1758971447794,-1218.32,0.0003589,9]
[388031480,1758971447803,-480.0,0.0003589,9]
[388031481,1758971447812,-480.0,0.0003589,2]
[388031482,1758971447821,-151.0,0.0003589,30]
[388031483,1758971447830,-480.0,0.0003589,9]
[388031484,1758971447839,-480.0,0.0003589,9]
[388031485,1758971447847,-151.0,0.0003589,30]
[388031486,1758971447856,-151.0,0.0003589,30]
[388031487,1758971447864,-998.02,0.0003589,9]
[388031488,1758971447873,-480.0,0.0003589,9]
[388031489,1758971447882,-480.0,0.0003589,9]
[388031490,1758971447890,-480.0,0.0003589,9]
[388031491,1758971447900,-480.0,0.0003589,9]
[388031492,1758971447909,-1272.04,0.0003589,9]
[388031493,1758971447917,-480.0,0.0003589,9]
[388031494,1758971447926,-482.2790909,0.0003589,9]
[388031495,1758971447934,-480.0,0.0003589,9]
[388031496,1758971447943,-480.0,0.0003589,9]
[388031497,1758971447952,-484.20991405,0.0003589,9]
[388031498,1758971447960,-480.0,0.0003589,9]
[388031499,1758971447969,-589.61,0.0003589,9]